[Event "Titled Tuesday Blitz January 17 Late 2023"]
[White "Djokic, Mihailo"]
[Black "Hoffmann, Asa"]
[WhiteFideId "976440"]
[BlackFideId "2001470"]
[WhiteElo "2192"]
[BlackElo "2185"]
[Result "1-0"]
[Round "01"]
[TimeControl "180+2"]
[Date "2023.01.17"]
[WhiteClock "0:00:52"]
[BlackClock "0:01:13"]

1. e4 {[%clk 0:02:59]}  d6 {[%clk 0:02:56]} 2. d4 {[%clk 0:02:58]}  Nf6 {[%clk 0:02:53]} 3. Nc3 {[%clk 0:02:59]}  c6 {[%clk 0:02:52]} 4. f4 {[%clk 0:02:58]}  Qa5 {[%clk 0:02:52]} 5. e5 {[%clk 0:02:55]}  Ne4 {[%clk 0:02:50]} 6. Bd3 {[%clk 0:02:55]}  Bf5 {[%clk 0:02:47]} 7. Ne2 {[%clk 0:02:32]}  d5 {[%clk 0:02:44]} 8. O-O {[%clk 0:02:30]}  e6 {[%clk 0:02:41]} 9. Bxe4 {[%clk 0:02:24]}  dxe4 {[%clk 0:02:39]} 10. Ng3 {[%clk 0:02:23]}  Nd7 {[%clk 0:02:32]} 11. Ncxe4 {[%clk 0:02:22]}  O-O-O {[%clk 0:02:31]} 12. Nxf5 {[%clk 0:02:19]}  exf5 {[%clk 0:02:31]} 13. Ng3 {[%clk 0:02:19]}  g6 {[%clk 0:02:30]} 14. c3 {[%clk 0:02:18]}  Nb6 {[%clk 0:02:22]} 15. Qb3 {[%clk 0:02:15]}  Qd5 {[%clk 0:02:20]} 16. Qc2 {[%clk 0:02:05]}  c5 {[%clk 0:02:20]} 17. Be3 {[%clk 0:02:03]}  cxd4 {[%clk 0:02:16]} 18. cxd4+ {[%clk 0:02:01]}  Kb8 {[%clk 0:02:15]} 19. b3 {[%clk 0:01:58]}  Ba3 {[%clk 0:02:13]} 20. Qd2 {[%clk 0:01:37]}  Rc8 {[%clk 0:02:11]} 21. Rfd1 {[%clk 0:01:31]}  h5 {[%clk 0:02:11]} 22. h3 {[%clk 0:01:25]}  Rc6 {[%clk 0:02:10]} 23. Bf2 {[%clk 0:01:18]}  Rhc8 {[%clk 0:02:06]} 24. Nf1 {[%clk 0:01:14]}  Rc2 {[%clk 0:02:04]} 25. Qd3 {[%clk 0:01:14]}  Qe4 {[%clk 0:01:54]} 26. Qxe4 {[%clk 0:01:13]}  fxe4 {[%clk 0:01:53]} 27. d5 {[%clk 0:01:12]}  Bc5 {[%clk 0:01:39]} 28. Bxc5 {[%clk 0:01:07]}  R8xc5 {[%clk 0:01:31]} 29. d6 {[%clk 0:01:07]}  Kc8 {[%clk 0:01:31]} 30. Ne3 {[%clk 0:01:04]}  Kd7 {[%clk 0:01:28]} 31. Nxc2 {[%clk 0:01:03]}  Rxc2 {[%clk 0:01:28]} 32. Rac1 {[%clk 0:01:03]}  Rxc1 {[%clk 0:01:20]} 33. Rxc1 {[%clk 0:01:04]}  Nd5 {[%clk 0:01:20]} 34. Kf2 {[%clk 0:00:55]}  f6 {[%clk 0:01:17]} 35. g3 {[%clk 0:00:54]}  h4 {[%clk 0:01:17]} 36. gxh4 {[%clk 0:00:54]}  Nxf4 {[%clk 0:01:17]} 37. Rc7+ {[%clk 0:00:54]}  Kd8 {[%clk 0:01:15]} 38. exf6 {[%clk 0:00:53]}  e3+ {[%clk 0:01:15]} 39. Kxe3 {[%clk 0:00:52]}  Nd5+ {[%clk 0:01:15]} 40. Kd4 {[%clk 0:00:52]}  Nxf6 {[%clk 0:01:13]} 41. Rxb7 {[%clk 0:00:52]} 1-0


[Site "https://www.chess.com"]

[Event "Titled Tuesday Blitz January 17 Late 2023"]
[White "Seletsky, Grigory"]
[Black "Rostomyan, Mikayel"]
[WhiteFideId "14112191"]
[BlackFideId "13313754"]
[WhiteElo "2259"]
[BlackElo "2222"]
[Result "0-1"]
[Round "01"]
[TimeControl "180+2"]
[Date "2023.01.17"]
[WhiteClock "0:00:17"]
[BlackClock "0:00:14"]

1. e4 {[%clk 0:02:59]}  d6 {[%clk 0:02:57]} 2. d4 {[%clk 0:02:59]}  Nf6 {[%clk 0:02:57]} 3. Nc3 {[%clk 0:02:59]}  e5 {[%clk 0:02:58]} 4. Nf3 {[%clk 0:02:57]}  exd4 {[%clk 0:02:58]} 5. Nxd4 {[%clk 0:02:57]}  Be7 {[%clk 0:02:59]} 6. g3 {[%clk 0:02:56]}  O-O {[%clk 0:02:59]} 7. Bg2 {[%clk 0:02:57]}  Re8 {[%clk 0:02:59]} 8. O-O {[%clk 0:02:57]}  Bf8 {[%clk 0:03:00]} 9. h3 {[%clk 0:02:55]}  Nbd7 {[%clk 0:03:00]} 10. Re1 {[%clk 0:02:54]}  Nc5 {[%clk 0:03:00]} 11. g4 {[%clk 0:02:50]}  c6 {[%clk 0:03:00]} 12. a4 {[%clk 0:02:49]}  a5 {[%clk 0:02:47]} 13. b3 {[%clk 0:02:44]}  g6 {[%clk 0:02:44]} 14. Bf4 {[%clk 0:02:44]}  Ne6 {[%clk 0:02:41]} 15. Be3 {[%clk 0:02:41]}  Nc5 {[%clk 0:02:33]} 16. Bf4 {[%clk 0:02:40]}  Bg7 {[%clk 0:02:32]} 17. Qd2 {[%clk 0:02:40]}  h5 {[%clk 0:02:08]} 18. g5 {[%clk 0:02:11]}  Nh7 {[%clk 0:02:08]} 19. h4 {[%clk 0:02:11]}  Nf8 {[%clk 0:02:07]} 20. Rad1 {[%clk 0:02:09]}  Nfe6 {[%clk 0:01:40]} 21. Be3 {[%clk 0:02:02]}  Qc7 {[%clk 0:01:21]} 22. f4 {[%clk 0:01:49]}  Nxd4 {[%clk 0:01:16]} 23. Bxd4 {[%clk 0:01:49]}  Bg4 {[%clk 0:01:17]} 24. Rc1 {[%clk 0:01:41]}  Bxd4+ {[%clk 0:01:07]} 25. Qxd4 {[%clk 0:01:40]}  Ne6 {[%clk 0:01:07]} 26. Qf2 {[%clk 0:01:39]}  d5 {[%clk 0:01:04]} 27. exd5 {[%clk 0:01:28]}  Nxf4 {[%clk 0:01:04]} 28. d6 {[%clk 0:01:27]}  Qxd6 {[%clk 0:01:01]} 29. Ne4 {[%clk 0:01:28]}  Rxe4 {[%clk 0:00:57]} 30. Rxe4 {[%clk 0:01:24]}  Nxg2 {[%clk 0:00:56]} 31. Qxg2 {[%clk 0:01:23]}  Bf5 {[%clk 0:00:48]} 32. Re3 {[%clk 0:01:20]}  Qd4 {[%clk 0:00:47]} 33. Qf2 {[%clk 0:01:20]}  Kh7 {[%clk 0:00:45]} 34. Rce1 {[%clk 0:01:13]}  Qg4+ {[%clk 0:00:43]} 35. Qg3 {[%clk 0:01:11]}  Qd4 {[%clk 0:00:42]} 36. c3 {[%clk 0:01:04]}  Qb6 {[%clk 0:00:33]} 37. Qf2 {[%clk 0:01:01]}  Qxb3 {[%clk 0:00:31]} 38. Re7 {[%clk 0:01:01]}  Rd8 {[%clk 0:00:25]} 39. R1e5 {[%clk 0:00:54]}  Rd1+ {[%clk 0:00:20]} 40. Kh2 {[%clk 0:00:53]}  Qb1 {[%clk 0:00:09]} 41. Rxf7+ {[%clk 0:00:48]}  Kg8 {[%clk 0:00:09]} 42. Rfxf5 {[%clk 0:00:36]}  Rh1+ {[%clk 0:00:09]} 43. Kg2 {[%clk 0:00:36]}  gxf5 {[%clk 0:00:07]} 44. Rxf5 {[%clk 0:00:34]}  Qe4+ {[%clk 0:00:07]} 45. Qf3 {[%clk 0:00:34]}  Qxf3+ {[%clk 0:00:07]} 46. Kxf3 {[%clk 0:00:33]}  Rxh4 {[%clk 0:00:07]} 47. Rxa5 {[%clk 0:00:28]}  Rc4 {[%clk 0:00:08]} 48. Ra7 {[%clk 0:00:25]}  Rxc3+ {[%clk 0:00:08]} 49. Kf4 {[%clk 0:00:25]}  Rb3 {[%clk 0:00:08]} 50. Kf5 {[%clk 0:00:25]}  Kg7 {[%clk 0:00:08]} 51. a5 {[%clk 0:00:24]}  Rb5+ {[%clk 0:00:08]} 52. Kf4 {[%clk 0:00:23]}  Kg6 {[%clk 0:00:09]} 53. a6 {[%clk 0:00:24]}  Rb4+ {[%clk 0:00:09]} 54. Kg3 {[%clk 0:00:22]}  bxa6 {[%clk 0:00:09]} 55. Rxa6 {[%clk 0:00:22]}  Rc4 {[%clk 0:00:10]} 56. Ra5 {[%clk 0:00:21]}  h4+ {[%clk 0:00:10]} 57. Kh3 {[%clk 0:00:21]}  Kh5 {[%clk 0:00:11]} 58. Re5 {[%clk 0:00:20]}  Rc3+ {[%clk 0:00:10]} 59. Kh2 {[%clk 0:00:19]}  c5 {[%clk 0:00:11]} 60. Rd5 {[%clk 0:00:17]}  c4 {[%clk 0:00:11]} 61. Rc5 {[%clk 0:00:17]}  Rc1 {[%clk 0:00:06]} 62. Kg2 {[%clk 0:00:17]}  c3 {[%clk 0:00:05]} 63. Kh2 {[%clk 0:00:18]}  Kg6 {[%clk 0:00:03]} 64. Rc4 {[%clk 0:00:17]}  Kh5 {[%clk 0:00:03]} 65. Rc5 {[%clk 0:00:17]}  Kg6 {[%clk 0:00:04]} 66. Rc4 {[%clk 0:00:17]}  Kxg5 {[%clk 0:00:04]} 67. Rc5+ {[%clk 0:00:17]}  Kf4 {[%clk 0:00:05]} 68. Rc4+ {[%clk 0:00:17]}  Ke3 {[%clk 0:00:06]} 69. Rxh4 {[%clk 0:00:14]}  c2 {[%clk 0:00:06]} 70. Rc4 {[%clk 0:00:14]}  Kd3 {[%clk 0:00:07]} 71. Rc8 {[%clk 0:00:13]}  Rd1 {[%clk 0:00:07]} 72. Rd8+ {[%clk 0:00:14]}  Ke3 {[%clk 0:00:07]} 73. Re8+ {[%clk 0:00:14]}  Kf4 {[%clk 0:00:08]} 74. Rf8+ {[%clk 0:00:14]}  Ke5 {[%clk 0:00:08]} 75. Re8+ {[%clk 0:00:14]}  Kf6 {[%clk 0:00:09]} 76. Rf8+ {[%clk 0:00:14]}  Ke7 {[%clk 0:00:09]} 77. Rc8 {[%clk 0:00:15]}  c1=Q {[%clk 0:00:09]} 78. Rxc1 {[%clk 0:00:14]}  Rxc1 {[%clk 0:00:10]} 79. Kg3 {[%clk 0:00:14]}  Rc5 {[%clk 0:00:11]} 80. Kf4 {[%clk 0:00:14]}  Kd6 {[%clk 0:00:12]} 81. Ke4 {[%clk 0:00:15]}  Ra5 {[%clk 0:00:12]} 82. Kd4 {[%clk 0:00:15]}  Ra4+ {[%clk 0:00:13]} 83. Kc3 {[%clk 0:00:16]}  Rg4 {[%clk 0:00:13]} 84. Kb3 {[%clk 0:00:17]}  Kc5 {[%clk 0:00:13]} 85. Ka3 {[%clk 0:00:17]}  Kb5 {[%clk 0:00:14]} 0-1


[Site "https://www.chess.com"]

[Event "Titled Tuesday Blitz January 17 Late 2023"]
[White "Adury, Anant"]
[Black "Leiva, Gianmarco"]
[WhiteFideId "30964687"]
[BlackFideId "3804399"]
[WhiteElo "2123"]
[BlackElo "2392"]
[Result "0-1"]
[Round "01"]
[TimeControl "180+2"]
[Date "2023.01.17"]
[WhiteClock "0:01:26"]
[BlackClock "0:00:43"]

1. Nf3 {[%clk 0:02:57]}  Nf6 {[%clk 0:02:55]} 2. c4 {[%clk 0:02:58]}  e6 {[%clk 0:02:52]} 3. Nc3 {[%clk 0:02:56]}  d5 {[%clk 0:02:53]} 4. e3 {[%clk 0:02:57]}  a6 {[%clk 0:02:51]} 5. cxd5 {[%clk 0:02:50]}  exd5 {[%clk 0:02:49]} 6. d4 {[%clk 0:02:50]}  b6 {[%clk 0:02:40]} 7. Bd3 {[%clk 0:02:49]}  Bb7 {[%clk 0:02:24]} 8. O-O {[%clk 0:02:50]}  Nbd7 {[%clk 0:02:13]} 9. b3 {[%clk 0:02:49]}  Bd6 {[%clk 0:02:07]} 10. Bb2 {[%clk 0:02:50]}  O-O {[%clk 0:02:07]} 11. Ne2 {[%clk 0:02:50]}  Qe7 {[%clk 0:01:57]} 12. Rc1 {[%clk 0:02:45]}  Ne4 {[%clk 0:01:54]} 13. Ng3 {[%clk 0:02:46]}  Nxg3 {[%clk 0:01:52]} 14. hxg3 {[%clk 0:02:46]}  Rac8 {[%clk 0:01:51]} 15. Qe2 {[%clk 0:02:45]}  Ra8 {[%clk 0:01:51]} 16. Qc2 {[%clk 0:02:36]}  g6 {[%clk 0:01:50]} 17. g4 {[%clk 0:02:16]}  Rac8 {[%clk 0:01:34]} 18. g5 {[%clk 0:02:16]}  Kg7 {[%clk 0:01:33]} 19. g3 {[%clk 0:02:10]}  Rh8 {[%clk 0:01:28]} 20. Kg2 {[%clk 0:02:10]}  h6 {[%clk 0:01:28]} 21. gxh6+ {[%clk 0:02:09]}  Rxh6 {[%clk 0:01:29]} 22. Rh1 {[%clk 0:02:09]}  Rxh1 {[%clk 0:01:27]} 23. Rxh1 {[%clk 0:02:10]}  Rh8 {[%clk 0:01:11]} 24. Rxh8 {[%clk 0:02:09]}  Kxh8 {[%clk 0:01:12]} 25. Qe2 {[%clk 0:02:07]}  a5 {[%clk 0:01:08]} 26. Ba6 {[%clk 0:02:03]}  Bxa6 {[%clk 0:01:07]} 27. Qxa6 {[%clk 0:02:04]}  Kg7 {[%clk 0:01:03]} 28. Qb7 {[%clk 0:01:59]}  Qe4 {[%clk 0:01:01]} 29. Qa6 {[%clk 0:01:42]}  g5 {[%clk 0:01:00]} 30. Qc8 {[%clk 0:01:31]}  Nf6 {[%clk 0:00:44]} 31. g4 {[%clk 0:01:26]}  Nxg4 {[%clk 0:00:43]} 0-1


[Site "https://www.chess.com"]

[Event "Titled Tuesday Blitz January 17 Late 2023"]
[White "Gerbelli Neto, Eduardo"]
[Black "Atanasov, Anthony"]
[WhiteFideId "2103281"]
[BlackFideId "2623897"]
[WhiteElo "2114"]
[BlackElo "2368"]
[Result "0-1"]
[Round "01"]
[TimeControl "180+2"]
[Date "2023.01.17"]
[WhiteClock "0:01:14"]
[BlackClock "0:01:01"]

1. e4 {[%clk 0:03:00]}  e5 {[%clk 0:02:59]} 2. Nf3 {[%clk 0:03:00]}  Nf6 {[%clk 0:03:00]} 3. Bc4 {[%clk 0:02:59]}  Nxe4 {[%clk 0:03:00]} 4. Nc3 {[%clk 0:02:59]}  Nc6 {[%clk 0:02:44]} 5. Nxe4 {[%clk 0:02:56]}  d5 {[%clk 0:02:43]} 6. Bb5 {[%clk 0:02:56]}  dxe4 {[%clk 0:02:42]} 7. Nxe5 {[%clk 0:02:52]}  Qg5 {[%clk 0:02:42]} 8. d4 {[%clk 0:02:48]}  Qxg2 {[%clk 0:02:34]} 9. Rf1 {[%clk 0:02:48]}  a6 {[%clk 0:02:13]} 10. Bxc6+ {[%clk 0:02:37]}  bxc6 {[%clk 0:02:13]} 11. Bf4 {[%clk 0:02:15]}  Bh3 {[%clk 0:02:12]} 12. Qe2 {[%clk 0:02:09]}  Qxf1+ {[%clk 0:02:11]} 13. Qxf1 {[%clk 0:02:09]}  Bxf1 {[%clk 0:02:11]} 14. Kxf1 {[%clk 0:02:10]}  Bd6 {[%clk 0:02:12]} 15. Bg3 {[%clk 0:02:09]}  f6 {[%clk 0:02:01]} 16. Nxc6 {[%clk 0:02:09]}  Kd7 {[%clk 0:02:01]} 17. Bxd6 {[%clk 0:02:05]}  cxd6 {[%clk 0:02:00]} 18. Na5 {[%clk 0:01:58]}  Rab8 {[%clk 0:01:58]} 19. b3 {[%clk 0:01:58]}  d5 {[%clk 0:01:57]} 20. c4 {[%clk 0:01:57]}  Rhc8 {[%clk 0:01:55]} 21. c5 {[%clk 0:01:57]}  Rb5 {[%clk 0:01:50]} 22. c6+ {[%clk 0:01:49]}  Ke7 {[%clk 0:01:43]} 23. Nb7 {[%clk 0:01:45]}  Rxc6 {[%clk 0:01:43]} 24. Nc5 {[%clk 0:01:46]}  Rcxc5 {[%clk 0:01:29]} 25. dxc5 {[%clk 0:01:44]}  Rxc5 {[%clk 0:01:30]} 26. Ke2 {[%clk 0:01:39]}  d4 {[%clk 0:01:28]} 27. Kd2 {[%clk 0:01:37]}  Kd6 {[%clk 0:01:26]} 28. a3 {[%clk 0:01:36]}  f5 {[%clk 0:01:26]} 29. b4 {[%clk 0:01:36]}  Rc3 {[%clk 0:01:26]} 30. a4 {[%clk 0:01:36]}  f4 {[%clk 0:01:26]} 31. b5 {[%clk 0:01:30]}  axb5 {[%clk 0:01:27]} 32. axb5 {[%clk 0:01:30]}  Rb3 {[%clk 0:01:27]} 33. Ra7 {[%clk 0:01:21]}  Rb2+ {[%clk 0:01:18]} 34. Ke1 {[%clk 0:01:20]}  d3 {[%clk 0:01:01]} 35. Rxg7 {[%clk 0:01:13]}  e3 {[%clk 0:01:01]} 36. fxe3 {[%clk 0:01:14]}  fxe3 {[%clk 0:01:01]} 0-1


[Site "https://www.chess.com"]

[Event "Titled Tuesday Blitz January 17 Late 2023"]
[White "Pershin, Denis"]
[Black "Rios Escobar, Adan"]
[WhiteFideId "24165506"]
[BlackFideId "3403645"]
[WhiteElo "2366"]
[BlackElo "2234"]
[Result "1-0"]
[Round "01"]
[TimeControl "180+2"]
[Date "2023.01.17"]
[WhiteClock "0:00:30"]
[BlackClock "0:00:01"]

1. d4 {[%clk 0:02:56]}  Nf6 {[%clk 0:03:00]} 2. c4 {[%clk 0:02:56]}  g6 {[%clk 0:02:58]} 3. Nc3 {[%clk 0:02:48]}  Bg7 {[%clk 0:02:58]} 4. e4 {[%clk 0:02:48]}  d6 {[%clk 0:02:59]} 5. f4 {[%clk 0:02:48]}  O-O {[%clk 0:02:55]} 6. Nf3 {[%clk 0:02:48]}  c5 {[%clk 0:02:56]} 7. d5 {[%clk 0:02:48]}  e6 {[%clk 0:02:56]} 8. Be2 {[%clk 0:02:48]}  exd5 {[%clk 0:02:54]} 9. exd5 {[%clk 0:02:48]}  Bf5 {[%clk 0:02:32]} 10. O-O {[%clk 0:02:47]}  Ne4 {[%clk 0:02:32]} 11. Nxe4 {[%clk 0:02:41]}  Bxe4 {[%clk 0:02:33]} 12. Ng5 {[%clk 0:02:36]}  Bf5 {[%clk 0:02:32]} 13. Bd3 {[%clk 0:02:36]}  Qf6 {[%clk 0:02:21]} 14. Be3 {[%clk 0:02:21]}  Bxd3 {[%clk 0:02:07]} 15. Qxd3 {[%clk 0:02:22]}  Na6 {[%clk 0:02:01]} 16. Ne4 {[%clk 0:02:07]}  Qe7 {[%clk 0:01:51]} 17. Rae1 {[%clk 0:02:08]}  Qd7 {[%clk 0:01:48]} 18. f5 {[%clk 0:02:04]}  Be5 {[%clk 0:01:26]} 19. Bf4 {[%clk 0:01:42]}  Bd4+ {[%clk 0:01:18]} 20. Kh1 {[%clk 0:01:39]}  Nb4 {[%clk 0:01:19]} 21. Qg3 {[%clk 0:01:26]}  Rfe8 {[%clk 0:00:37]} 22. Nxd6 {[%clk 0:01:14]}  Rxe1 {[%clk 0:00:33]} 23. Rxe1 {[%clk 0:01:15]}  Bf2 {[%clk 0:00:15]} 24. Qxf2 {[%clk 0:01:11]}  Nd3 {[%clk 0:00:15]} 25. Qe3 {[%clk 0:01:06]}  Nxe1 {[%clk 0:00:14]} 26. Qxe1 {[%clk 0:01:07]}  g5 {[%clk 0:00:14]} 27. Bg3 {[%clk 0:00:56]}  h5 {[%clk 0:00:10]} 28. h4 {[%clk 0:00:53]}  gxh4 {[%clk 0:00:08]} 29. Bxh4 {[%clk 0:00:53]}  Qxd6 {[%clk 0:00:08]} 30. Qe2 {[%clk 0:00:41]}  Qh6 {[%clk 0:00:03]} 31. Qf2 {[%clk 0:00:37]}  b6 {[%clk 0:00:01]} 32. Be7 {[%clk 0:00:30]}  Re8 {[%clk 0:00:01]} 33. d6 {[%clk 0:00:30]}  Qc1+ {[%clk 0:00:01]} 34. Kh2 {[%clk 0:00:30]} 1-0


[Site "https://www.chess.com"]

[Event "Titled Tuesday Blitz January 17 Late 2023"]
[White "Aggelis, Nikolaos"]
[Black "Mazurkiewicz, Michal"]
[WhiteFideId "4213220"]
[BlackFideId "1124943"]
[WhiteElo "2270"]
[BlackElo "2145"]
[Result "1/2-1/2"]
[Round "01"]
[TimeControl "180+2"]
[Date "2023.01.17"]
[WhiteClock "0:00:16"]
[BlackClock "0:00:06"]

1. Nf3 {[%clk 0:02:58]}  Nf6 {[%clk 0:02:59]} 2. g3 {[%clk 0:02:58]}  g6 {[%clk 0:02:59]} 3. Bg2 {[%clk 0:02:59]}  Bg7 {[%clk 0:03:00]} 4. O-O {[%clk 0:02:59]}  O-O {[%clk 0:03:01]} 5. d4 {[%clk 0:02:59]}  d6 {[%clk 0:03:02]} 6. b3 {[%clk 0:02:59]}  Nbd7 {[%clk 0:03:01]} 7. Bb2 {[%clk 0:02:59]}  Re8 {[%clk 0:03:01]} 8. Nbd2 {[%clk 0:02:58]}  e5 {[%clk 0:03:00]} 9. e4 {[%clk 0:02:59]}  c6 {[%clk 0:02:59]} 10. dxe5 {[%clk 0:02:58]}  dxe5 {[%clk 0:02:59]} 11. Re1 {[%clk 0:02:55]}  b5 {[%clk 0:02:52]} 12. a4 {[%clk 0:02:55]}  Bb7 {[%clk 0:02:46]} 13. c4 {[%clk 0:02:30]}  Nc5 {[%clk 0:02:39]} 14. Nxe5 {[%clk 0:02:18]}  Ng4 {[%clk 0:02:19]} 15. Qxg4 {[%clk 0:02:08]}  Qxd2 {[%clk 0:02:18]} 16. Re2 {[%clk 0:02:08]}  Qd6 {[%clk 0:01:39]} 17. f4 {[%clk 0:01:21]}  Nxb3 {[%clk 0:01:23]} 18. Rf1 {[%clk 0:01:11]}  Nd4 {[%clk 0:01:20]} 19. Ref2 {[%clk 0:00:58]}  bxa4 {[%clk 0:01:11]} 20. Nd3 {[%clk 0:00:46]}  a3 {[%clk 0:00:59]} 21. e5 {[%clk 0:00:46]}  Qd8 {[%clk 0:00:23]} 22. Bxa3 {[%clk 0:00:46]}  Nc2 {[%clk 0:00:21]} 23. Bd6 {[%clk 0:00:40]}  Ne3 {[%clk 0:00:19]} 24. Qf3 {[%clk 0:00:41]}  Nxf1 {[%clk 0:00:19]} 25. Rxf1 {[%clk 0:00:41]}  Qd7 {[%clk 0:00:17]} 26. Nc5 {[%clk 0:00:41]}  Qc8 {[%clk 0:00:16]} 27. Nxb7 {[%clk 0:00:42]}  Qxb7 {[%clk 0:00:17]} 28. Qxc6 {[%clk 0:00:42]}  Qb3 {[%clk 0:00:06]} 29. Qb5 {[%clk 0:00:30]}  Qxb5 {[%clk 0:00:05]} 30. cxb5 {[%clk 0:00:30]}  Rac8 {[%clk 0:00:05]} 31. Bc6 {[%clk 0:00:30]}  Red8 {[%clk 0:00:05]} 32. Rc1 {[%clk 0:00:27]}  Bf8 {[%clk 0:00:05]} 33. Ra1 {[%clk 0:00:24]}  Bxd6 {[%clk 0:00:05]} 34. exd6 {[%clk 0:00:25]}  Rxd6 {[%clk 0:00:05]} 35. Rxa7 {[%clk 0:00:26]}  Rd2 {[%clk 0:00:05]} 36. Ra1 {[%clk 0:00:24]}  Rcd8 {[%clk 0:00:05]} 37. Kf1 {[%clk 0:00:22]}  Rd1+ {[%clk 0:00:05]} 38. Rxd1 {[%clk 0:00:21]}  Rxd1+ {[%clk 0:00:06]} 39. Ke2 {[%clk 0:00:21]}  Rb1 {[%clk 0:00:07]} 40. Kd3 {[%clk 0:00:22]}  Kf8 {[%clk 0:00:08]} 41. Kc4 {[%clk 0:00:22]}  Ke7 {[%clk 0:00:08]} 42. Kc5 {[%clk 0:00:22]}  Kd8 {[%clk 0:00:08]} 43. b6 {[%clk 0:00:22]}  Rc1+ {[%clk 0:00:09]} 44. Kd6 {[%clk 0:00:21]}  Rd1+ {[%clk 0:00:09]} 45. Bd5 {[%clk 0:00:21]}  Kc8 {[%clk 0:00:07]} 46. g4 {[%clk 0:00:17]}  Rd2 {[%clk 0:00:05]} 47. h4 {[%clk 0:00:16]}  Rg2 {[%clk 0:00:05]} 48. g5 {[%clk 0:00:16]}  Rg4 {[%clk 0:00:04]} 49. Ke5 {[%clk 0:00:16]}  Rxh4 {[%clk 0:00:04]} 50. Bxf7 {[%clk 0:00:17]}  Kb7 {[%clk 0:00:04]} 51. Kf6 {[%clk 0:00:16]}  Kxb6 {[%clk 0:00:04]} 52. Kg7 {[%clk 0:00:16]}  Rxf4 {[%clk 0:00:04]} 53. Bg8 {[%clk 0:00:16]}  Rh4 {[%clk 0:00:05]} 54. Bxh7 {[%clk 0:00:16]}  Rg4 {[%clk 0:00:05]} 55. Kh6 {[%clk 0:00:17]}  Rh4+ {[%clk 0:00:04]} 56. Kxg6 {[%clk 0:00:17]}  Rg4 {[%clk 0:00:05]} 57. Kf6 {[%clk 0:00:17]}  Rxg5 {[%clk 0:00:06]} 58. Kxg5 {[%clk 0:00:16]} 1/2-1/2


[Site "https://www.chess.com"]

[Event "Titled Tuesday Blitz January 17 Late 2023"]
[White "Benmesbah, Natacha"]
[Black "Kavutskiy, Konstantin"]
[WhiteFideId "642002"]
[BlackFideId "2026384"]
[WhiteElo "2261"]
[BlackElo "2414"]
[Result "0-1"]
[Round "01"]
[TimeControl "180+2"]
[Date "2023.01.17"]
[WhiteClock "0:00:17"]
[BlackClock "0:00:17"]

1. e4 {[%clk 0:02:59]}  Nc6 {[%clk 0:02:58]} 2. d4 {[%clk 0:02:58]}  d6 {[%clk 0:02:58]} 3. f4 {[%clk 0:02:56]}  e5 {[%clk 0:02:52]} 4. Nf3 {[%clk 0:02:54]}  exd4 {[%clk 0:02:48]} 5. Nxd4 {[%clk 0:02:54]}  Nf6 {[%clk 0:02:49]} 6. Nc3 {[%clk 0:02:53]}  g6 {[%clk 0:02:47]} 7. Be3 {[%clk 0:02:41]}  Bg7 {[%clk 0:02:46]} 8. Nxc6 {[%clk 0:02:36]}  bxc6 {[%clk 0:02:45]} 9. Be2 {[%clk 0:02:31]}  O-O {[%clk 0:02:43]} 10. O-O {[%clk 0:02:31]}  Re8 {[%clk 0:02:42]} 11. Bf3 {[%clk 0:02:32]}  Bb7 {[%clk 0:02:32]} 12. Qd3 {[%clk 0:02:06]}  Qe7 {[%clk 0:02:17]} 13. Rae1 {[%clk 0:02:03]}  a5 {[%clk 0:02:14]} 14. Qd2 {[%clk 0:02:01]}  Rad8 {[%clk 0:02:09]} 15. Bd4 {[%clk 0:02:01]}  c5 {[%clk 0:02:07]} 16. Bxf6 {[%clk 0:02:01]}  Qxf6 {[%clk 0:02:05]} 17. Nd5 {[%clk 0:01:37]}  Bxd5 {[%clk 0:02:02]} 18. exd5 {[%clk 0:01:17]}  Qd4+ {[%clk 0:02:01]} 19. Qxd4 {[%clk 0:01:13]}  Bxd4+ {[%clk 0:02:02]} 20. Kh1 {[%clk 0:01:13]}  Bxb2 {[%clk 0:01:59]} 21. f5 {[%clk 0:01:10]}  Bc3 {[%clk 0:01:57]} 22. Rxe8+ {[%clk 0:01:10]}  Rxe8 {[%clk 0:01:58]} 23. fxg6 {[%clk 0:01:10]}  hxg6 {[%clk 0:01:57]} 24. g3 {[%clk 0:01:09]}  Kg7 {[%clk 0:01:56]} 25. Kg2 {[%clk 0:01:08]}  Rb8 {[%clk 0:01:53]} 26. Be4 {[%clk 0:00:59]}  Rb2 {[%clk 0:01:50]} 27. Rf3 {[%clk 0:01:00]}  Bb4 {[%clk 0:01:40]} 28. a3 {[%clk 0:01:00]}  Bd2 {[%clk 0:01:39]} 29. Rb3 {[%clk 0:00:59]}  Ra2 {[%clk 0:01:27]} 30. Kf2 {[%clk 0:00:56]}  Bc1 {[%clk 0:01:26]} 31. Ke2 {[%clk 0:00:55]}  a4 {[%clk 0:01:25]} 32. Rb7 {[%clk 0:00:55]}  Bxa3 {[%clk 0:01:20]} 33. Rxc7 {[%clk 0:00:55]}  Bb2 {[%clk 0:01:19]} 34. Rc6 {[%clk 0:00:55]}  Be5 {[%clk 0:01:18]} 35. Ra6 {[%clk 0:00:52]}  a3 {[%clk 0:01:18]} 36. Ra7 {[%clk 0:00:52]}  Ra1 {[%clk 0:01:17]} 37. Bd3 {[%clk 0:00:51]}  Kf6 {[%clk 0:01:09]} 38. Bb5 {[%clk 0:00:50]}  Rb1 {[%clk 0:00:55]} 39. Be8 {[%clk 0:00:49]}  Rb2 {[%clk 0:00:51]} 40. h4 {[%clk 0:00:39]}  Bxg3 {[%clk 0:00:42]} 41. Rxf7+ {[%clk 0:00:37]}  Ke5 {[%clk 0:00:42]} 42. Ra7 {[%clk 0:00:34]}  a2 {[%clk 0:00:41]} 43. Bxg6 {[%clk 0:00:33]}  Kd4 {[%clk 0:00:35]} 44. h5 {[%clk 0:00:30]}  Be5 {[%clk 0:00:34]} 45. h6 {[%clk 0:00:29]}  c4 {[%clk 0:00:27]} 46. h7 {[%clk 0:00:27]}  Kxd5 {[%clk 0:00:27]} 47. Ra5+ {[%clk 0:00:25]}  Kd4 {[%clk 0:00:26]} 48. Rxe5 {[%clk 0:00:25]}  a1=Q {[%clk 0:00:25]} 49. Re4+ {[%clk 0:00:26]}  Kc5 {[%clk 0:00:23]} 50. Rh4 {[%clk 0:00:21]}  Rb8 {[%clk 0:00:18]} 51. Rh5+ {[%clk 0:00:20]}  Kb4 {[%clk 0:00:17]} 52. Rd5 {[%clk 0:00:17]}  Qf6 {[%clk 0:00:17]} 0-1


[Site "https://www.chess.com"]